fUST/lending_fUST_20240409
["ID","MTS","AMOUNT","RATE_DAILY","PERIOD"]
[321958771,1712651440806,-500.0,0.0003589,5]
[321958772,1712651440815,-500.0,0.0003589,5]
[321958773,1712651440825,-608.96,0.0003589,5]
[321958774,1712651440834,-189.67699352,0.0003589,5]
[321958775,1712651440843,-969.85,0.0003589,2]
[321958776,1712651440852,-500.0,0.0003589,5]
[321958777,1712651440861,-500.0,0.0003589,5]
[321958778,1712651440870,-500.0,0.0003589,5]
[321958779,1712651440879,-153.20965356,0.0003589,5]
[321958780,1712651440888,-502.30811741,0.0003589,5]
[321958781,1712651440896,-500.0,0.0003589,5]
[321958782,1712651440905,-500.0,0.0003589,5]
[321958783,1712651440914,-500.0,0.0003589,5]
[321958784,1712651440923,-500.0,0.0003589,5]
[321958785,1712651440934,-500.0,0.0003589,5]
[321958786,1712651440943,-500.0,0.0003589,5]
[321958787,1712651440952,-500.0,0.0003589,5]
[321958788,1712651440961,-568.21,0.0003589,5]
[321958789,1712651440970,-500.0,0.0003589,5]
[321958790,1712651440980,-500.0,0.0003589,5]
[321958791,1712651440989,-653.26,0.0003589,5]
[321958792,1712651440998,-769.04,0.0003589,5]
[321958793,1712651441007,-500.0,0.0003589,5]
[321958794,1712651441017,-500.0,0.0003589,5]
[321958795,1712651441027,-500.0,0.0003589,5]
[321958796,1712651441036,-184.23814281,0.0003589,5]
[321958797,1712651441045,-618.98,0.0003589,5]
[321958798,1712651441055,-500.0,0.0003589,5]
[321958799,1712651441064,-500.0,0.0003589,5]
[321958800,1712651441073,-500.0,0.0003589,5]
[321958801,1712651441083,-500.0,0.0003589,5]
[321958802,1712651441092,-500.0,0.0003589,5]
[321958803,1712651441101,-500.0,0.0003589,5]
[321958804,1712651441110,-500.0,0.0003589,5]
[321958805,1712651441120,-500.0,0.0003589,5]
[321958806,1712651441129,-547.3,0.0003589,5]
[321958807,1712651441139,-500.0,0.0003589,5]
[321958808,1712651441148,-2740.48,0.0003589,5]
[321958809,1712651441157,-500.0,0.0003589,5]
[321958810,1712651441168,-500.0,0.0003589,5]
[321958811,1712651441178,-500.0,0.0003589,5]
[321958812,1712651441190,-500.0,0.0003589,5]
[321958813,1712651441199,-500.0,0.0003589,5]
[321958814,1712651441209,-636.08,0.0003589,5]
[321958815,1712651441219,-500.0,0.0003589,5]
[321958816,1712651441344,-500.0,0.0003589,5]
[321958817,1712651441354,-500.0,0.0003589,5]
[321958818,1712651441364,-500.0,0.0003589,5]
[321958819,1712651441373,-500.0,0.0003589,5]
[321958820,1712651441382,-500.0,0.0003589,5]
[321958821,1712651441391,-374.5924307,0.0003589,5]
[321958822,1712651441401,-500.0,0.0003589,5]
[321958823,1712651441410,-500.0,0.0003589,5]
[321958824,1712651441419,-500.0,0.0003589,5]
[321958825,1712651441431,-500.0,0.0003589,5]
[321958826,1712651441440,-504.48504271,0.0003589,5]
[321958827,1712651441450,-500.0,0.0003589,5]
[321958828,1712651441459,-500.0,0.0003589,5]
[321958829,1712651441468,-608.8,0.0003589,5]
[321958830,1712651441477,-500.0,0.0003589,5]
[321958831,1712651441487,-3859.71,0.0003589,5]
[321958832,1712651441496,-500.0,0.0003589,5]
[321958833,1712651441505,-500.0,0.0003589,5]
[321958834,1712651441515,-500.0,0.0003589,5]
[321958835,1712651441524,-654.17,0.0003589,5]
[321958836,1712651441533,-500.0,0.0003589,5]
[321958837,1712651441545,-884.49,0.0003589,5]
[321958838,1712651441555,-2623.83,0.0003589,5]
[321958839,1712651441565,-505.39825563,0.0003589,5]
[321958840,1712651441574,-500.0,0.0003589,5]
[321958841,1712651441583,-712.46,0.0003589,5]
[321958842,1712651441593,-6858.55,0.0003589,5]
[321958843,1712651441603,-500.0,0.0003589,5]
[321958844,1712651441612,-500.0,0.0003589,5]
[321958845,1712651441621,-500.0,0.0003589,5]
[321958846,1712651441630,-1732.92,0.0003589,5]
[321958847,1712651441640,-500.0,0.0003589,5]
[321958848,1712651441649,-500.0,0.0003589,5]
[321958849,1712651441658,-500.0,0.0003589,5]
[321958850,1712651441666,-500.0,0.0003589,5]
[321958851,1712651441675,-500.0,0.0003589,5]
[321958852,1712651441687,-500.0,0.0003589,5]
[321958853,1712651441697,-2041.23,0.0003589,5]
[321958854,1712651441706,-500.0,0.0003589,5]
[321958855,1712651441715,-18891.32,0.0003589,5]
[321958856,1712651441725,-1034.8,0.0003589,5]
[321958857,1712651441734,-2393.63,0.0003589,5]
[321958858,1712651441743,-500.0,0.0003589,5]
[321958859,1712651441752,-500.0,0.0003589,5]
[321958860,1712651441761,-651.98,0.0003589,5]
[321958861,1712651441770,-501.72300528,0.0003589,5]
[321958862,1712651441779,-500.0,0.0003589,5]
[321958863,1712651441788,-501.00546119,0.0003589,5]
[321958864,1712651441797,-1067.19,0.0003589,5]
[321958865,1712651441806,-503.87987524,0.0003589,5]
[321958866,1712651441815,-1011.76,0.0003589,5]
[321958867,1712651441824,-500.0,0.0003589,5]
[321958868,1712651441833,-1382.25,0.0003589,5]
[321958869,1712651441842,-509.14743441,0.0003589,5]
[321958870,1712651441852,-500.0,0.0003589,5]
[321958871,1712651441861,-500.0,0.0003589,5]
[321958872,1712651441870,-500.0,0.0003589,5]
[321958873,1712651441878,-500.0,0.0003589,5]
[321958874,1712651441888,-2070.79,0.0003589,5]
[321958875,1712651441897,-2179.98,0.0003589,5]
[321958876,1712651441906,-1270.05,0.0003589,5]
[321958877,1712651441915,-500.0,0.0003589,5]
[321958878,1712651441927,-2358.82,0.0003589,5]
[321958879,1712651441938,-500.0,0.0003589,5]
[321958880,1712651441947,-1619.57,0.0003589,5]
[321958881,1712651441956,-500.0,0.0003589,5]
[321958882,1712651441966,-24756.87,0.0003589,5]
[321958883,1712651441975,-574.21,0.0003589,5]
[321958884,1712651441984,-500.0,0.0003589,5]
[321958885,1712651441993,-500.0,0.0003589,5]
[321958886,1712651442002,-500.0,0.0003589,5]
[321958887,1712651442011,-500.0,0.0003589,5]
[321958888,1712651442020,-814.47,0.0003589,5]
[321958889,1712651442029,-500.0,0.0003589,5]
[321958890,1712651442038,-526.08765852,0.0003589,5]
[321958891,1712651442048,-4843.91,0.0003589,5]
[321958892,1712651442057,-500.0,0.0003589,5]
[321958893,1712651442066,-500.0,0.0003589,5]
[321958894,1712651442074,-500.0,0.0003589,5]
[321958895,1712651442083,-647.9,0.0003589,5]
[321958896,1712651442092,-500.0,0.0003589,5]
[321958897,1712651442101,-1586.46,0.0003589,5]
[321958898,1712651442110,-500.0,0.0003589,5]
[321958899,1712651442119,-500.0,0.0003589,5]
[321958900,1712651442128,-500.0,0.0003589,5]
[321958901,1712651442137,-500.0,0.0003589,5]
[321958902,1712651442146,-7100.58,0.0003589,5]
[321958903,1712651442155,-504.42821858,0.0003589,5]
[321958904,1712651442165,-500.0,0.0003589,5]
[321958905,1712651442175,-500.0,0.0003589,5]
[321958906,1712651442187,-2790.75,0.0003589,5]
[321958907,1712651442197,-1046.75,0.0003589,5]
[321958908,1712651442206,-500.0,0.0003589,5]
[321958909,1712651442214,-500.0,0.0003589,5]
[321958910,1712651442224,-2435.91,0.0003589,5]
[321958911,1712651442233,-500.0,0.0003589,5]
[321958912,1712651442243,-1489.97879399,0.0003589,5]
[321958913,1712651442260,-270.76120601,0.0003589,5]
[321958914,1712651442270,-530.90983018,0.00035946,5]
[321958915,1712651442287,-44.24016982,0.00035946,5]
[321958916,1712651442295,-500.0,0.00035946,5]
[321958917,1712651442305,-300.0,0.00035946,5]
[321958918,1712651442314,-68.2795183,0.00035946,5]
[321958919,1712651442325,-431.7204817,0.00035946,5]
[321958920,1712651442334,-323.80665778,0.00035946,5]
[321958921,1712651442490,-402.62586776,0.00035672,5]
[321958922,1712651442501,-97.37413224,0.00035672,5]
[321958923,1712651442510,-500.0,0.00035672,5]
[321958924,1712651442520,-178.18573915,0.00035946,5]
[321958925,1712651442529,-500.0,0.00035946,5]
[321958926,1712651442538,-500.0,0.00035946,5]
[321958927,1712651442548,-500.0,0.00035946,5]
[321958928,1712651442558,-500.0,0.00035946,5]
[321958929,1712651442567,-500.0,0.00035946,5]
[321958930,1712651442576,-500.0,0.00035946,5]
[321958931,1712651442586,-500.0,0.00035946,5]
[321958932,1712651442594,-500.0,0.00035946,5]
[321958933,1712651442604,-500.0,0.00035946,5]
[321958934,1712651442614,-135.63559202,0.00035946,5]
[321959034,1712651443873,-155.96001844,0.00035615,4]
[321959036,1712651443883,-500.0,0.00035616,2]
[321959038,1712651443892,-500.0,0.00035672,5]
[321959040,1712651443902,-364.36440798,0.00035946,5]
[321959042,1712651443911,-180.12298975,0.00035946,5]
[321959044,1712651443920,-1105.91,0.00035946,5]
[321959046,1712651443929,-500.0,0.00035946,5]
[321959048,1712651443939,-500.0,0.00035946,5]
[321959050,1712651443948,-678.87,0.00035946,5]
[321959052,1712651443957,-500.0,0.00035946,5]
[321959054,1712651443970,-500.0,0.00035946,5]
[321959056,1712651443979,-497.48,0.00035946,5]
[321959058,1712651443988,-53.48368068,0.00035946,5]
[321959060,1712651443998,-446.51631932,0.00035946,5]
[321959062,1712651444008,-500.0,0.00035946,5]
[321959064,1712651444017,-500.0,0.00035946,5]
[321959066,1712651444026,-500.0,0.00035946,5]
[321959068,1712651444035,-500.0,0.00035946,5]
[321959070,1712651444044,-500.0,0.00035946,5]
[321959072,1712651444053,-500.0,0.00035946,5]
[321959074,1712651444061,-500.0,0.00035946,5]
[321959076,1712651444070,-448.29415462,0.00035946,5]
[321959078,1712651444083,-51.70584538,0.00035946,5]
[321959080,1712651444091,-500.0,0.00035946,5]
[321959082,1712651444098,-3797.73,0.00035946,5]
[321959084,1712651444107,-500.0,0.00035946,5]
[321959085,1712651444116,-500.0,0.00035946,5]
[321959087,1712651444125,-500.0,0.00035946,5]
[321959089,1712651444134,-8085.84,0.00035946,5]
[321959091,1712651444143,-500.0,0.00035946,5]
[321959093,1712651444152,-500.0,0.00035946,5]
[321959095,1712651444163,-500.0,0.00035946,5]
[321959097,1712651444172,-3787.95,0.00035946,5]
[321959099,1712651444186,-500.0,0.00035946,5]
[321959101,1712651444195,-698.47,0.00035946,5]
[321959103,1712651444204,-500.0,0.00035946,5]
[321959105,1712651444214,-500.0,0.00035946,5]
[321959107,1712651444224,-500.0,0.00035946,5]
[321959109,1712651444234,-1859.95,0.00035946,5]
[321959111,1712651444243,-638.18,0.00035946,5]
[321959113,1712651444253,-1027.69,0.00035946,5]
[321959115,1712651444263,-500.0,0.00035946,5]
[321959118,1712651444273,-500.0,0.00035946,5]
[321959119,1712651444282,-4128.08,0.00035946,5]
[321959122,1712651444292,-500.0,0.00035946,5]
[321959123,1712651444301,-500.0,0.00035946,5]
[321959125,1712651444311,-500.0,0.00035946,5]
[321959127,1712651444320,-500.0,0.00035946,5]
[321959130,1712651444330,-500.04770741,0.00035946,5]
[321959131,1712651444339,-3489.42,0.00035946,5]
[321959133,1712651444348,-500.0,0.00035946,5]
[321959135,1712651444358,-500.0,0.00035946,5]
[321959138,1712651444368,-2099.63,0.00035946,5]
[321959139,1712651444377,-500.0,0.00035946,5]
[321959142,1712651444387,-500.0,0.00035946,5]
[321959144,1712651444396,-861.01,0.00035946,5]
[321959145,1712651444406,-500.0,0.00035946,5]
[321959147,1712651444416,-500.0,0.00035946,5]
[321959149,1712651444425,-500.0,0.00035946,5]
[321959151,1712651444436,-166.666666,0.00036076,2]
[321959154,1712651444446,-1058.29616814,0.00036097,2]
[321959156,1712651444456,-500.0,0.00036163,5]
[321959170,1712651444466,-500.0,0.00036163,5]
[321959172,1712651444587,-500.0,0.00036164,5]
[321959174,1712651444598,-293.19633964,0.00036164,5]
[321959176,1712651444614,-328.50496403,0.00036164,5]
[321959178,1712651444624,-500.0,0.00036164,5]
[321959180,1712651444633,-500.0,0.00036164,5]
[321959182,1712651444642,-500.0,0.00036164,5]
[321959185,1712651444653,-278.95946307,0.00036164,5]
[321959186,1712651444662,-500.0,0.00036164,5]
[321959189,1712651444672,-500.0,0.00036164,5]
[321959190,1712651444681,-608.04,0.00036164,5]
[321959192,1712651444693,-500.0,0.00036164,5]
[321959194,1712651444702,-500.0,0.00036164,5]
[321959196,1712651444711,-500.0,0.00036164,5]
[321959198,1712651444720,-676.16,0.00036164,5]
[321959200,1712651444729,-500.0,0.00036164,5]
[321959202,1712651444738,-1420.91,0.00036164,5]
[321959204,1712651444747,-612.52,0.00036164,5]
[321959206,1712651444756,-500.0,0.00036164,5]
[321959208,1712651444765,-500.0,0.00036164,5]
[321959210,1712651444774,-500.0,0.00036164,5]
[321959212,1712651444783,-500.0,0.00036164,5]
[321959214,1712651444792,-500.0,0.00036164,5]
[321959216,1712651444801,-500.0,0.00036164,5]
[321959217,1712651444812,-500.0,0.00036164,5]
[321959218,1712651444821,-608.96,0.00036164,5]
[321959219,1712651444830,-969.85,0.00036164,2]
[321959220,1712651444839,-500.0,0.00036164,5]
[321959221,1712651444848,-500.0,0.00036164,5]
[321959222,1712651444857,-500.0,0.00036164,5]
[321959223,1712651444866,-500.0,0.00036164,5]
[321959224,1712651444875,-525.12917169,0.00036164,5]
[321959225,1712651444884,-500.0,0.00036164,5]
[321959227,1712651444893,-500.0,0.00036164,5]
[321959229,1712651444902,-500.0,0.00036164,5]
[321959231,1712651444912,-500.0,0.00036164,5]
[321959233,1712651444921,-568.21,0.00036164,5]
[321959235,1712651444930,-500.0,0.00036164,5]
[321959237,1712651444940,-500.0,0.00036164,5]
[321959239,1712651444950,-653.26,0.00036164,5]
[321959241,1712651444959,-769.04,0.00036164,5]
[321959243,1712651444968,-500.0,0.00036164,5]
[321959245,1712651444977,-500.0,0.00036164,5]
[321959248,1712651444987,-500.0,0.00036164,5]
[321959249,1712651444997,-618.98,0.00036164,5]
[321959251,1712651445006,-500.0,0.00036164,5]
[321959254,1712651445016,-253.54701778,0.00036164,5]
[321959256,1712651445026,-500.0,0.00036164,5]
[321959258,1712651445035,-500.0,0.00036164,5]
[321959259,1712651445044,-500.0,0.00036164,5]
[321959262,1712651445054,-500.0,0.00036164,5]
[321959264,1712651445063,-500.0,0.00036164,5]
[321959266,1712651445072,-500.0,0.00036164,5]
[321959268,1712651445081,-547.3,0.00036164,5]
[321959270,1712651445091,-502.259176,0.00036164,5]
[321959272,1712651445100,-2740.48,0.00036164,5]
[321959274,1712651445109,-500.0,0.00036164,5]
[321959276,1712651445119,-500.0,0.00036164,5]
[321959278,1712651445128,-500.0,0.00036164,5]
[321959280,1712651445138,-500.0,0.00036164,5]
[321959281,1712651445147,-636.08,0.00036164,5]
[321959283,1712651445156,-500.0,0.00036164,5]
[321959285,1712651445171,-359.71236778,0.00036164,5]
[321959287,1712651445180,-500.0,0.00036164,5]
[321959289,1712651445190,-500.0,0.00036164,5]
[321959292,1712651445200,-500.0,0.00036164,5]
[321959294,1712651445210,-500.0,0.00036164,5]
[321959296,1712651445220,-500.0,0.00036164,5]
[321959298,1712651445229,-500.0,0.00036164,5]
[321959299,1712651445238,-500.0,0.00036164,5]
[321959302,1712651445248,-500.0,0.00036164,5]
[321959303,1712651445258,-500.0,0.00036164,5]
[321959306,1712651445267,-500.0,0.00036164,5]
[321959308,1712651445276,-608.8,0.00036164,5]
[321959310,1712651445286,-500.0,0.00036164,5]
[321959312,1712651445295,-3859.71,0.00036164,5]
[321959314,1712651445304,-500.0,0.00036164,5]
[321959316,1712651445313,-500.0,0.00036164,5]
[321959318,1712651445323,-505.60819055,0.00036164,5]
[321959320,1712651445333,-654.17,0.00036164,5]
[321959322,1712651445343,-500.0,0.00036164,5]
[321959324,1712651445352,-884.49,0.00036164,5]
[321959326,1712651445363,-2623.83,0.00036164,5]
[321959328,1712651445373,-500.0,0.00036164,5]
[321959330,1712651445382,-712.46,0.00036164,5]
[321959332,1712651445392,-6858.55,0.00036164,5]
[321959334,1712651445401,-500.0,0.00036164,5]
[321959336,1712651445411,-495.68646918,0.00036164,5]
[321959338,1712651445420,-500.0,0.00036164,5]
[321959340,1712651445430,-1732.92,0.00036164,5]
[321959342,1712651445442,-500.0,0.00036164,5]
[321959344,1712651445452,-500.0,0.00036164,5]
[321959346,1712651445461,-430.06899563,0.00036164,5]
[321959348,1712651445470,-500.0,0.00036164,5]
[321959350,1712651445480,-345.85,0.00036164,5]
[321959352,1712651445489,-500.0,0.00036164,5]
[321959354,1712651445498,-2041.23,0.00036164,5]
[321959356,1712651445508,-500.0,0.00036164,5]
[321959358,1712651445518,-18891.32,0.00036164,5]
[321959360,1712651445527,-1034.8,0.00036164,5]
[321959362,1712651445537,-2393.63,0.00036164,5]
[321959364,1712651445550,-500.0,0.00036164,5]
[321959366,1712651445560,-500.0,0.00036164,5]
[321959368,1712651445569,-651.98,0.00036164,5]
[321959370,1712651445578,-500.0,0.00036164,5]
[321959372,1712651445588,-1067.19,0.00036164,5]
[321959374,1712651445597,-1011.76,0.00036164,5]
[321959376,1712651445606,-500.0,0.00036164,5]
[321959378,1712651445616,-1382.25,0.00036164,5]
[321959380,1712651445625,-500.0,0.00036164,5]
[321959382,1712651445636,-500.0,0.00036164,5]
[321959384,1712651445645,-500.0,0.00036164,5]
[321959386,1712651445655,-500.0,0.00036164,5]
[321959388,1712651445665,-2070.79,0.00036164,5]
[321959390,1712651445675,-2179.98,0.00036164,5]
[321959392,1712651445686,-1270.05,0.00036164,5]
[321959394,1712651445695,-500.0,0.00036164,5]
[321959396,1712651445704,-2358.82,0.00036164,5]
[321959398,1712651445713,-211.95543164,0.00036164,5]
[321959400,1712651445722,-1619.57,0.00036164,5]
[321959402,1712651445732,-24756.87,0.00036164,5]
[321959404,1712651445741,-574.21,0.00036164,5]
[321959406,1712651445751,-500.0,0.00036164,5]
[321959408,1712651445761,-500.0,0.00036164,5]
[321959410,1712651445769,-500.0,0.00036164,5]
[321959412,1712651445779,-500.0,0.00036164,5]
[321959414,1712651445788,-814.47,0.00036164,5]
[321959416,1712651445797,-500.0,0.00036164,5]
[321959418,1712651445807,-4843.91,0.00036164,5]
[321959420,1712651445817,-500.0,0.00036164,5]
[321959423,1712651445827,-500.0,0.00036164,5]
[321959425,1712651445837,-416.69818138,0.00036164,5]
[321959427,1712651445846,-647.9,0.00036164,5]
[321959429,1712651445855,-503.11976327,0.00036164,5]
[321959431,1712651445864,-1586.46,0.00036164,5]
[321959433,1712651445874,-500.0,0.00036164,5]
[321959435,1712651445883,-500.0,0.00036164,5]
[321959437,1712651445892,-500.0,0.00036164,5]
[321959439,1712651445901,-500.0,0.00036164,5]
[321959440,1712651445910,-7100.58,0.00036164,5]
[321959443,1712651445920,-500.0,0.00036164,5]
[321959444,1712651445929,-500.0,0.00036164,5]
[321959446,1712651445941,-2790.75,0.00036164,5]
[321959448,1712651445950,-1046.75,0.00036164,5]
[321959450,1712651445959,-500.0,0.00036164,5]
[321959453,1712651445968,-500.0,0.00036164,5]
[321959455,1712651445977,-2435.91,0.00036164,5]
[321959457,1712651445986,-1760.74,0.00036164,5]
[321959458,1712651445995,-575.15,0.0003622,5]
[321959461,1712651446004,-500.0,0.0003622,5]
[321959465,1712651446014,-300.0,0.0003622,5]
[321959467,1712651446023,-508.37842726,0.0003622,5]
[321959470,1712651446032,-500.0,0.0003622,5]
[321959472,1712651446040,-500.0,0.0003622,5]
[321959474,1712651446049,-500.0,0.0003622,5]
[321959476,1712651446058,-500.0,0.0003622,5]
[321959479,1712651446067,-500.0,0.0003622,5]
[321959482,1712651446075,-500.0,0.0003622,5]
[321959485,1712651446084,-500.0,0.0003622,5]
[321959488,1712651446092,-500.0,0.0003622,5]
[321959490,1712651446101,-500.0,0.0003622,5]
[321959492,1712651446111,-500.0,0.0003622,5]
[321959494,1712651446120,-1105.91,0.0003622,5]
[321959498,1712651446129,-500.0,0.0003622,5]
[321959501,1712651446138,-466.06840421,0.0003622,5]
[321959504,1712651446147,-678.87,0.0003622,5]
[321959506,1712651446156,-500.0,0.0003622,5]
[321959508,1712651446166,-500.0,0.0003622,5]
[321959510,1712651446175,-500.0,0.0003622,5]
[321959512,1712651446188,-500.0,0.0003622,5]
[321959514,1712651446197,-500.0,0.0003622,5]
[321959516,1712651446206,-500.0,0.0003622,5]
[321959518,1712651446214,-500.0,0.0003622,5]
[321959520,1712651446225,-517.66075112,0.0003622,5]
[321959522,1712651446234,-500.0,0.0003622,5]
[321959524,1712651446243,-500.0,0.0003622,5]
[321959526,1712651446252,-614.15701084,0.0003622,5]
[321959528,1712651446261,-500.0,0.0003622,5]
[321959530,1712651446271,-3797.73,0.0003622,5]
[321959532,1712651446280,-500.0,0.0003622,5]
[321959534,1712651446289,-500.0,0.0003622,5]
[321959536,1712651446298,-339.12255361,0.0003622,5]
[321959538,1712651446307,-8085.84,0.0003622,5]
[321959539,1712651446316,-503.76546229,0.0003622,5]
[321959541,1712651446325,-500.0,0.0003622,5]
[321959544,1712651446335,-509.97354254,0.0003622,5]
[321959545,1712651446344,-3787.95,0.0003622,5]
[321959548,1712651446354,-500.0,0.0003622,5]
[321959550,1712651446363,-698.47,0.0003622,5]
[321959552,1712651446372,-500.0,0.0003622,5]
[321959554,1712651446381,-500.0,0.0003622,5]
[321959555,1712651446390,-500.0,0.0003622,5]
[321959558,1712651446401,-1859.95,0.0003622,5]
[321959560,1712651446410,-638.18,0.0003622,5]
[321959562,1712651446419,-1027.69,0.0003622,5]
[321959564,1712651446428,-500.0,0.0003622,5]
[321959566,1712651446439,-500.0,0.0003622,5]
[321959568,1712651446448,-4128.08,0.0003622,5]
[321959569,1712651446458,-500.0,0.0003622,5]
[321959571,1712651446467,-500.0,0.0003622,5]
[321959573,1712651446476,-500.0,0.0003622,5]
[321959576,1712651446486,-500.0,0.0003622,5]
[321959578,1712651446495,-3489.42,0.0003622,5]
[321959579,1712651446504,-500.0,0.0003622,5]
[321959581,1712651446513,-501.05832069,0.0003622,5]
[321959583,1712651446523,-2099.63,0.0003622,5]
[321959585,1712651446532,-281.35973779,0.0003622,5]
[321959587,1712651446542,-500.0,0.0003622,5]
[321959590,1712651446553,-861.01,0.0003622,5]
[321959592,1712651446562,-500.0,0.0003622,5]
[321959593,1712651446572,-500.0,0.0003622,5]
[321959596,1712651446581,-1058.29616814,0.00036348,2]
[321959598,1712651446590,-886.79559656,0.00036436,4]
[321959600,1712651446600,-837.11286158,0.00036436,4]
[321959602,1712651446610,-500.0,0.00036437,5]
[321959603,1712651446619,-500.0,0.00036437,5]
[321959606,1712651446628,-500.0,0.00036437,5]
[321959608,1712651446639,-500.0,0.00036438,5]
[321959610,1712651446648,-500.0,0.00036438,5]
[321959611,1712651446657,-272.73735109,0.00036438,5]
[321959613,1712651446666,-608.04,0.00036438,5]
[321959616,1712651446676,-500.0,0.00036438,5]
[321959617,1712651446685,-500.0,0.00036438,5]
[321959620,1712651446694,-626.29858566,0.00036438,5]
[321959622,1712651446703,-676.16,0.00036438,5]
[321959624,1712651446713,-500.0,0.00036438,5]
[321959626,1712651446722,-1420.91,0.00036438,5]
[321959628,1712651446731,-612.52,0.00036438,5]
[321959630,1712651446740,-500.0,0.00036438,5]
[321959632,1712651446749,-554.84435422,0.00036438,5]
[321959634,1712651446758,-500.0,0.00036438,5]
[321959636,1712651446767,-500.0,0.00036438,5]
[321959637,1712651446776,-500.0,0.00036438,5]
[321959640,1712651446785,-608.96,0.00036438,5]
[321959642,1712651446794,-969.85,0.00036438,2]
[321959644,1712651446803,-500.0,0.00036438,5]
[321959646,1712651446812,-500.0,0.00036438,5]
[321959648,1712651446821,-500.0,0.00036438,5]
[321959650,1712651446830,-500.0,0.00036438,5]
[321959652,1712651446840,-568.21,0.00036438,5]
[321959663,1712651446939,-500.0,0.00036438,5]
[321959665,1712651446948,-653.26,0.00036438,5]
[321959667,1712651446958,-769.04,0.00036438,5]
[321959669,1712651446967,-500.0,0.00036438,5]
[321959671,1712651446976,-500.0,0.00036438,5]
[321959674,1712651446985,-500.0,0.00036438,5]
[321959676,1712651446994,-618.98,0.00036438,5]
[321959678,1712651447003,-500.0,0.00036438,5]
[321959680,1712651447013,-500.0,0.00036438,5]
[321959682,1712651447022,-500.0,0.00036438,5]
[321959684,1712651447030,-507.09992428,0.00036438,5]
[321959686,1712651447040,-209.92810678,0.00036438,5]
[321959687,1712651447049,-547.3,0.00036438,5]
[321959690,1712651447058,-2740.48,0.00036438,5]
[321959691,1712651447067,-500.0,0.00036438,5]
[321959693,1712651447076,-500.0,0.00036438,5]
[321959696,1712651447086,-500.0,0.00036438,5]
[321959697,1712651447095,-500.0,0.00036438,5]
[321959699,1712651447104,-636.08,0.00036438,5]
[321959701,1712651447112,-500.0,0.00036438,5]
[321959704,1712651447122,-500.0,0.00036438,5]
[321959706,1712651447131,-365.63587067,0.00036438,5]
[321959708,1712651447140,-500.0,0.00036438,5]
[321959710,1712651447149,-500.0,0.00036438,5]
[321959712,1712651447158,-500.0,0.00036438,5]
[321959713,1712651447167,-500.0,0.00036438,5]
[321959715,1712651447177,-500.0,0.00036438,5]
[321959717,1712651447190,-500.0,0.00036438,5]
[321959720,1712651447201,-500.0,0.00036438,5]
[321959721,1712651447211,-378.2663692,0.00036438,5]
[321959723,1712651447223,-608.8,0.00036438,5]
[321959726,1712651447233,-500.0,0.00036438,5]
[321959728,1712651447243,-3859.71,0.00036438,5]
[321959729,1712651447252,-500.0,0.00036438,5]